bitfinex-derivatives/quotes_ETHF0:USTF0_20240901
["timestamp","ask_amount","ask_price","bid_price","bid_amount"]
[1725201392484,4.8066,2458.5,2458.4,0.38608257]
[1725201392772,10.8066,2458.5,2458.4,0.38608257]
[1725201394476,10.8066,2458.5,2458.1,0.0061065]
[1725201394676,7.2758,2458.4,2458.1,0.0061065]
[1725201394879,7.2758,2458.4,2457.7,1.06383617]
[1725201395070,7.65637163,2458.3,2457.8,0.38608077]
[1725201395277,7.65637163,2458.3,2457.9,0.38608077]
[1725201395467,7.65637163,2458.3,2457.5,1.06383617]
[1725201395468,13.65637163,2458.3,2458.0,0.38608077]
[1725201395668,7.65637163,2458.3,2457.4,6.248578]
[1725201395978,7.65637163,2458.3,2457.6,0.0061065]
[1725201395979,0.0061065,2458.1,2457.6,0.0061065]
[1725201396177,0.0061065,2458.1,2457.7,0.38610659]
[1725201396483,0.0061065,2458.1,2457.8,0.38610659]
[1725201396677,0.0061065,2458.1,2457.9,0.38610659]
[1725201396978,0.0061065,2458.1,2458.0,0.38610659]
[1725201397380,0.0061065,2458.1,2458.0,7.66190659]
[1725201397580,0.0061065,2458.1,2458.0,4.45410659]
[1725201397784,0.0061065,2458.1,2458.0,0.38610659]
[1725201397985,0.0061065,2458.1,2457.9,3.2078]
[1725201398286,0.0061065,2458.1,2458.0,5.63954043]
[1725201399285,0.0061065,2458.1,2458.0,9.70754043]
[1725201399885,0.0061065,2458.1,2458.0,5.63954043]
[1725201400074,0.0061065,2458.1,2458.0,5.2535102]
[1725201400784,0.0061065,2458.1,2458.0,5.6603602]
[1725201400978,0.0061065,2458.1,2458.0,10.29398939]
[1725201401173,0.0061065,2458.1,2458.0,18.98321201]
[1725201401174,0.00283289,2458.1,2458.0,18.98321201]
[1725201401690,2.89e-06,2458.1,2458.0,24.98321201]
[1725201402575,0.7677,2459.2,2458.8,0.40671]
[1725201402777,0.7677,2459.2,2458.7,0.20824687]
[1725201402978,0.7677,2459.2,2458.5,7.3558]
[1725201403195,0.7677,2459.2,2458.8,5.31360766]
[1725201403484,0.7677,2459.2,2458.8,0.0061065]
[1725201403685,0.7677,2459.2,2458.8,0.4128265]
[1725201403989,0.7677,2459.2,2458.9,5.17587949]
[1725201403990,3.9755,2459.2,2458.9,5.17587949]
[1725201404288,0.7677,2459.2,2458.9,5.17587949]
[1725201404585,0.7677,2459.2,2459.0,0.40668]
[1725201405283,0.7677,2459.2,2458.9,5.17587949]
[1725201406381,4.0664,2459.1,2458.8,0.0061065]
[1725201406588,0.7569,2459.1,2458.8,0.0061065]
[1725201406785,4.8233,2459.1,2458.8,0.0061065]
[1725201406991,0.7569,2459.1,2458.8,0.0061065]
[1725201407187,0.7677,2459.2,2458.8,0.0061065]
[1725201407790,0.7677,2459.2,2458.9,5.25681303]
[1725201407976,0.7677,2459.2,2458.9,5.66351303]
[1725201408180,0.7677,2459.2,2459.0,0.40667]
[1725201408686,0.7677,2459.2,2458.9,5.66350303]
[1725201408989,0.7677,2459.2,2458.9,5.25681303]
[1725201409983,0.7677,2459.2,2459.0,3.2078]
[1725201410292,0.7677,2459.2,2459.1,5.33320579]
[1725201410488,0.7677,2459.2,2459.1,5.73987579]
[1725201410889,0.40654,2459.9,2459.2,0.40664]
[1725201411193,0.7612,2459.7,2459.1,5.73986579]
[1725201411390,0.40659,2459.6,2459.0,3.2078]
[1725201411890,3.969,2459.7,2459.1,5.5882914]
[1725201411891,0.7612,2459.7,2459.1,5.5882914]
[1725201412095,1.16777,2459.7,2459.1,5.5882914]
[1725201412287,0.7612,2459.7,2459.2,0.40665]
[1725201412488,0.7612,2459.7,2459.3,0.40663]
[1725201413181,0.7612,2459.7,2459.2,0.40664]
[1725201413381,0.7612,2459.7,2459.1,5.1816214]
[1725201413585,0.40665,2459.3,2459.0,3.2078]
[1725201413791,1.93176,2459.2,2459.0,3.2078]
[1725201413988,7.5251,2459.2,2458.8,0.0061065]
[1725201414183,0.4067,2458.9,2458.8,0.0061065]
[1725201414385,0.40669,2459.0,2458.8,0.0061065]
[1725201414688,4.0672,2459.0,2458.8,0.0061065]
[1725201414880,0.7726,2459.1,2458.8,0.0061065]
[1725201415896,0.7726,2459.1,2458.8,0.4128165]
[1725201416194,0.7726,2459.1,2458.8,0.0061065]
[1725201416694,0.4067,2458.9,2458.8,0.0061065]
[1725201416884,0.40676,2458.6,2458.1,4.96203]
[1725201417092,1.4962,2458.5,2458.1,0.81403]
[1725201417284,1.4962,2458.5,2458.2,8.65647887]
[1725201418690,1.4962,2458.5,2458.1,0.8201365]
[1725201418891,1.4962,2458.5,2458.1,0.4133065]
[1725201419083,3.2078,2458.8,2458.4,0.40678]
[1725201419284,3.2078,2458.8,2458.2,5.30627783]
[1725201419285,3.2078,2458.8,2458.3,0.40679]
[1725201419485,3.2078,2458.8,2458.4,0.40678]
[1725201419799,3.2078,2458.8,2458.4,5.17755162]
[1725201420090,0.7231,2458.7,2458.3,0.40679]
[1725201420593,0.7231,2458.7,2458.4,5.58433162]
[1725201420791,0.7231,2458.7,2458.4,5.17755162]
[1725201421090,0.7231,2458.7,2458.2,0.40681]
[1725201421486,0.7231,2458.7,2458.3,5.21913464]
[1725201421687,0.7354,2459.0,2458.3,16.74826201]
[1725201421885,0.7231,2458.7,2458.6,0.40675]
[1725201422084,0.7231,2458.7,2458.4,5.30970155]
[1725201422291,0.7231,2458.7,2458.5,0.40677]
[1725201422790,0.7354,2459.0,2458.6,8.61663506]
[1725201422991,1.4582,2459.0,2458.6,8.61663506]
[1725201423185,1.4582,2459.0,2458.7,0.40673]
[1725201423386,1.4582,2459.0,2458.6,17.6724581]
[1725201423587,0.7228,2459.0,2458.9,0.4067]
[1725201423790,0.0061065,2459.1,2459.0,0.40668]
[1725201423992,0.0061065,2459.1,2459.0,5.23278]
[1725201424300,0.0061065,2459.1,2459.0,6.56564619]
[1725201424494,0.0061065,2459.1,2459.0,10.63204619]
[1725201425299,10.981,2459.5,2459.4,0.40662]
[1725201425498,10.981,2459.5,2459.4,3.61442]
[1725201425713,0.7395,2459.9,2459.6,0.40658]
[1725201425714,11.7205,2459.9,2459.6,0.40658]
[1725201425894,11.7205,2459.9,2459.8,3.2078]
[1725201426194,11.7205,2459.9,2459.8,11.95713067]
[1725201426195,10.981,2459.9,2459.8,11.95713067]
[1725201426494,10.981,2459.9,2459.8,21.30369349]
[1725201426687,7.34643,2459.9,2459.8,27.71089349]
[1725201426884,7.34643,2459.9,2459.8,21.71089349]
[1725201427200,7.34643,2459.9,2459.8,27.91125715]
[1725201427709,0.7395,2460.9,2460.2,0.40647]
[1725201427993,4.6605,2460.9,2460.5,0.40643]
[1725201428189,4.6605,2460.9,2460.4,3.2078]
[1725201428391,4.6605,2460.9,2460.6,5.33220401]
[1725201428594,4.6605,2460.9,2460.5,5.33220401]
[1725201428789,8.7245,2460.9,2460.1,3.2078]
[1725201428989,4.6605,2460.9,2459.8,0.60756366]
[1725201429188,4.6605,2460.9,2460.2,5.36473415]
[1725201429598,4.6605,2460.9,2460.1,5.77123415]
[1725201429792,4.6605,2460.9,2460.2,0.40648]
[1725201430190,5.06688,2460.9,2460.2,5.30306092]
[1725201430398,3.2078,2460.6,2460.0,13.62316912]
[1725201430595,4.6605,2460.9,2460.2,3.2078]
[1725201430796,4.6605,2460.9,2460.3,5.33424724]
[1725201431100,4.6605,2460.9,2460.2,3.2078]
[1725201431293,4.6605,2460.9,2460.3,5.33424724]
[1725201431686,7.8683,2460.9,2460.3,5.33424724]
[1725201432093,8.27468,2460.9,2460.3,5.33424724]
[1725201432394,7.8683,2460.9,2460.3,5.33424724]
[1725201432701,7.8683,2460.9,2460.3,5.74071724]
[1725201433499,7.8683,2460.9,2460.5,0.40644]
[1725201433707,7.8683,2460.9,2460.4,9.11745377]
[1725201434004,7.8683,2460.9,2460.5,5.31858513]
[1725201434707,3.2078,2460.6,2460.2,7.3558]
[1725201434997,8.7245,2460.9,2460.4,8.53175144]
[1725201434998,7.8683,2460.9,2460.4,8.53175144]
[1725201435203,7.8683,2460.9,2460.4,13.90607997]
[1725201435404,7.8683,2460.9,2460.2,7.3558]
[1725201435588,7.8683,2460.9,2460.4,0.40645]
[1725201435788,7.8683,2460.9,2460.4,14.47240384]
[1725201435989,7.8683,2460.9,2460.4,0.40645]
[1725201436201,7.8683,2460.9,2460.5,0.40643]
[1725201436499,7.8683,2460.9,2460.5,5.33939149]
[1725201436701,7.8683,2460.9,2460.4,13.9556186]
[1725201436896,7.8683,2460.9,2460.2,7.3558]
[1725201437101,0.40639,2460.8,2460.2,7.3558]
[1725201437400,0.40639,2460.8,2460.4,13.65201394]
[1725201437610,7.8683,2460.9,2460.4,0.40645]
[1725201437792,4.6605,2460.9,2460.4,0.40645]
[1725201438202,5.06688,2460.9,2460.3,0.40646]
[1725201438606,5.06688,2460.9,2460.3,14.40370811]
[1725201439101,3.2078,2460.6,2460.2,3.2078]
[1725201439308,0.40647,2460.3,2459.7,0.4072]
[1725201439492,0.7222,2460.2,2459.7,0.81376]
[1725201439803,1.12869,2460.2,2459.9,5.32933135]
[1725201440003,1.12869,2460.2,2459.8,5.32933135]
[1725201440004,0.7222,2460.2,2459.8,5.32933135]
[1725201440198,0.7222,2460.2,2460.1,0.4065]
[1725201440396,0.7222,2460.2,2460.0,8.49439591]
[1725201440596,0.7222,2460.2,2460.1,5.32933135]
[1725201440803,0.7222,2460.2,2460.1,5.73583135]
[1725201441103,3.921,2460.6,2460.2,0.40648]
[1725201441292,0.7478,2460.5,2460.1,5.68032339]
[1725201441601,3.9556,2460.5,2460.3,5.27383339]
[1725201441900,0.7478,2460.5,2460.2,5.29135524]
[1725201442102,0.7478,2460.5,2460.1,0.4065]
[1725201442807,0.7478,2460.5,2460.0,0.40651]
[1725201443008,0.7478,2460.5,2460.1,0.40649]
[1725201443202,0.7478,2460.5,2460.1,5.71599328]
[1725201443504,0.7478,2460.5,2460.1,0.40649]
[1725201443902,0.7478,2460.5,2459.8,3.2078]
[1725201443903,0.7478,2460.5,2460.2,0.40648]
[1725201444202,0.7478,2460.5,2459.9,13.65465244]
[1725201444710,1.15424,2460.5,2459.9,5.23622375]
[1725201444893,0.7478,2460.5,2460.0,0.40652]
[1725201445606,0.7478,2460.5,2460.1,0.4065]
[1725201445802,1.15424,2460.5,2460.1,5.18660514]
[1725201446896,0.7478,2460.5,2460.1,5.18660514]
[1725201447099,4.8126,2460.5,2459.9,3.2078]
[1725201447301,0.40649,2460.2,2459.9,3.2078]
[1725201448405,0.7478,2460.5,2459.9,3.2078]
[1725201448406,0.7478,2460.5,2459.9,3.61433]
[1725201448614,0.40646,2460.4,2460.0,0.40652]
[1725201448797,1.15425,2460.5,2460.1,0.4065]
[1725201449111,1.15425,2460.5,2459.9,3.2078]
[1725201449112,0.40645,2460.4,2459.9,3.61433]
[1725201449300,0.40647,2460.3,2459.9,3.61433]
[1725201449495,0.7024,2460.2,2459.9,3.61433]
[1725201450304,0.7556,2460.3,2460.0,0.40652]
[1725201450505,0.7556,2460.3,2459.9,3.61433]
[1725201450713,0.7556,2460.3,2459.9,3.2078]
[1725201451010,0.7556,2460.3,2459.9,3.61433]
[1725201451713,0.7556,2460.3,2460.0,0.40652]
[1725201451919,0.7556,2460.3,2460.2,0.40649]
[1725201452500,1.4502,2460.5,2460.2,0.40649]
[1725201452702,0.7478,2460.5,2460.4,0.40645]
[1725201453212,0.7478,2460.5,2460.3,0.40646]
[1725201453605,0.7478,2460.5,2460.4,0.40645]
[1725201453805,0.7478,2460.5,2460.3,0.40646]
[1725201454204,0.7478,2460.5,2460.1,0.4065]
[1725201454414,0.7478,2460.5,2460.3,0.40646]
[1725201455505,0.7478,2460.5,2460.4,5.70937738]
[1725201455911,0.7478,2460.5,2460.4,0.40645]
[1725201456316,0.7478,2460.5,2460.3,0.40646]
[1725201456516,0.7478,2460.5,2460.4,0.40645]
[1725201456719,0.7478,2460.5,2460.4,5.60711902]
[1725201457017,0.7478,2460.5,2460.4,0.40645]
[1725201457218,3.921,2460.8,2460.4,4.064]
[1725201457416,3.921,2460.8,2460.5,0.40643]
[1725201458313,3.921,2460.8,2460.6,0.40642]
[1725201458621,3.921,2460.8,2459.9,3.2078]
[1725201458622,4.064,2460.7,2459.9,3.2078]
[1725201458814,3.61423,2460.6,2459.9,3.2078]
[1725201459014,0.40641,2460.7,2460.0,0.40651]
[1725201459312,3.921,2460.8,2459.9,3.2078]
[1725201459313,0.40642,2460.6,2459.9,3.61433]
[1725201459721,1.15584,2460.5,2459.9,3.61433]
[1725201459917,1.4744,2460.4,2459.9,3.2078]
[1725201460519,1.4744,2460.4,2459.9,3.61433]
[1725201460723,1.88086,2460.4,2459.9,3.2078]
[1725201460914,1.88086,2460.4,2459.7,0.61211986]
[1725201460915,3.2078,2460.2,2459.7,0.61211986]
[1725201461116,1.4744,2460.4,2459.7,0.61211986]
[1725201461318,1.4744,2460.4,2459.8,8.54523322]
[1725201461514,0.40649,2460.2,2459.8,8.54523322]
[1725201463021,3.2078,2460.3,2459.6,3.2139065]
[1725201463229,0.40655,2459.9,2459.6,3.2139065]
[1725201463523,2.63756,2459.8,2459.6,3.2139065]
[1725201463913,6.2966,2459.8,2459.6,3.2139065]
[1725201464113,11.74658987,2459.7,2458.9,0.38576789]
[1725201464324,11.74658987,2459.7,2458.3,4.5552]
[1725201464325,0.40668,2459.0,2458.7,0.38576789]
[1725201464515,0.7323,2458.9,2458.5,0.38576789]
[1725201465220,0.7384065,2458.9,2458.5,0.39187439]
[1725201465420,0.40673,2458.7,2458.5,0.0061065]
[1725201465621,0.40672,2458.8,2458.5,0.0061065]
[1725201466017,0.40675,2458.6,2458.5,0.0061065]
[1725201466522,10.0672,2458.6,2458.0,3.2078]
[1725201466729,0.40677,2458.5,2458.0,3.2078]
[1725201467222,3.2078,2458.7,2458.0,3.2078]
[1725201467223,0.40676,2458.6,2458.0,3.2078]
[1725201467426,0.40677,2458.5,2458.1,0.0061065]
[1725201468227,0.40676,2458.6,2458.1,0.0061065]
[1725201468525,4.163,2458.8,2458.2,13.98578645]
[1725201468721,4.163,2458.8,2458.3,0.40679]
[1725201469520,4.163,2458.8,2458.5,0.40676]
[1725201469722,0.7384065,2458.9,2458.4,5.20935807]
[1725201469926,0.7384065,2458.9,2458.4,5.61613807]
[1725201470225,0.7384065,2458.9,2458.4,5.20935807]
[1725201471023,1.1451165,2458.9,2458.1,5.14685912]
[1725201471327,0.40672,2458.8,2458.2,13.56699588]
[1725201471730,0.7384065,2458.9,2458.2,13.56699588]
[1725201472120,1.1451165,2458.9,2458.2,13.97380588]
[1725201472523,1.1451165,2458.9,2458.3,0.4068]
[1725201472728,0.7384065,2458.9,2458.3,0.4068]
[1725201472921,1.1451065,2458.9,2458.2,13.56699588]
[1725201473226,0.7384065,2458.9,2458.2,13.56699588]
[1725201473430,0.40674,2458.7,2458.2,13.56699588]
[1725201473625,3.61453,2458.8,2458.2,5.6526279]
[1725201473833,3.2078,2458.8,2458.3,0.4068]
[1725201474028,0.40674,2458.7,2458.2,5.2458079]
[1725201474231,0.40678,2458.5,2458.1,4.1541065]
[1725201474417,0.7353,2458.4,2458.1,4.1541065]
[1725201474621,1.4401,2458.4,2458.1,4.1541065]
[1725201478435,4.068,2458.3,2458.1,4.1541065]
[1725201478619,1.4401,2458.4,2458.1,0.0061065]
[1725201478620,5.5081,2458.4,2458.1,0.0061065]
[1725201478939,4.068,2458.3,2458.1,0.0061065]
[1725201479232,5.5081,2458.4,2458.1,0.0061065]
[1725201479436,4.068,2458.3,2458.1,0.0061065]
[1725201479624,5.5081,2458.4,2458.1,0.0061065]
[1725201480735,1.4401,2458.4,2458.1,0.0061065]
[1725201481035,3.921,2458.7,2458.1,0.0061065]
[1725201481036,3.921,2458.7,2458.2,13.78568072]
[1725201481233,3.921,2458.7,2458.3,0.40679]
[1725201481434,3.921,2458.7,2458.2,14.19249072]
[1725201481623,4.32774,2458.7,2458.2,14.19249072]
[1725201482334,3.2078,2458.6,2458.1,0.0061065]
[1725201482527,0.40678,2458.5,2458.1,0.0061065]
[1725201482730,0.40679,2458.4,2458.1,0.0061065]
[1725201482933,0.40678,2458.5,2458.1,0.0061065]
[1725201483132,3.9622,2458.6,2458.1,0.0061065]
[1725201483133,0.7629,2458.3,2458.1,0.0061065]
[1725201483327,0.7254,2458.2,2458.1,0.0061065]
[1725201483734,1.16116,2458.6,2458.1,0.4129365]
[1725201484037,1.4742,2458.5,2458.1,0.4129365]
[1725201484535,0.7254,2458.5,2458.3,3.2078]
[1725201484736,3.921,2458.7,2458.4,0.40677]
[1725201484933,3.921,2458.7,2458.4,5.19821216]
[1725201485138,3.921,2458.7,2458.6,0.40675]
[1725201485338,4.6464,2458.8,2458.6,0.40675]
[1725201485933,4.6464,2458.8,2458.6,0.40674]
[1725201486826,4.6464,2458.8,2458.7,4.47393]
[1725201486827,3.921,2458.8,2458.7,4.47393]
[1725201487026,3.921,2458.8,2458.7,19.61273695]
[1725201487238,2.70708877,2458.9,2458.8,0.40672]
[1725201487531,0.7726,2460.0,2459.5,0.40659]
[1725201487733,0.7589,2459.9,2459.6,0.40658]
[1725201488124,0.7589,2459.9,2459.5,0.4066]
[1725201488330,0.7589,2459.9,2459.5,0.4127065]
[1725201488331,0.7650065,2459.9,2459.5,0.4127065]
[1725201488726,0.7650065,2459.9,2459.5,0.0061065]
[1725201488934,0.0061065,2459.9,2459.7,0.40657]
[1725201489442,0.0061065,2459.9,2459.6,5.2158902]
[1725201490032,6.5e-06,2459.9,2459.8,0.40655]
[1725201490239,0.7589,2460.5,2460.2,0.40648]
[1725201490539,4.7353,2461.2,2460.2,3.61428]
[1725201490736,0.7528,2461.1,2460.2,3.61428]
[1725201491728,0.7528,2461.1,2460.1,0.20266862]
[1725201491928,0.7528,2461.1,2459.9,3.2078]
[1725201491929,0.7528,2461.1,2460.2,3.61428]
[1725201492224,0.7528,2461.1,2460.2,8.9289347]
[1725201492430,0.7528,2461.1,2460.2,3.61428]
[1725201493226,0.7528,2461.1,2460.4,0.40645]
[1725201493535,41.41144354,2461.6,2460.9,3.2078]
[1725201493536,3.2078,2461.6,2460.9,3.2078]
[1725201493741,3.2078,2461.6,2461.0,0.0061065]
[1725201494041,3.2078,2461.6,2461.0,0.4124465]
[1725201494236,1.5336,2462.0,2461.5,3.2078]
[1725201494439,1.5336,2462.0,2461.1,8.53854394]
[1725201494440,1.5336,2462.0,2461.6,0.40625]
[1725201494636,1.5336,2462.0,2461.7,3.2078]
[1725201494934,1.5336,2462.0,2461.5,5.269631]
[1725201495134,1.5336,2462.0,2461.6,3.2078]
[1725201495340,1.5336,2462.0,2461.6,0.40625]
[1725201495537,0.7618,2462.0,2461.7,3.61402]
[1725201495737,0.7618,2462.0,2461.7,0.40622]
[1725201495937,0.7618,2462.0,2461.6,0.60502439]
[1725201496627,0.7618,2462.0,2461.6,0.40625]
[1725201497434,0.7618,2462.0,2461.5,3.61406]
[1725201497944,0.7618,2462.0,2461.6,5.39516683]
[1725201498239,0.7618,2462.0,2461.6,5.80141683]
[1725201498440,0.7618,2462.0,2461.6,6.00273102]
[1725201498739,0.7618,2462.0,2461.7,0.40624]
[1725201498941,3.2078,2462.4,2461.7,0.40624]
[1725201499429,3.2078,2462.4,2461.6,6.00273102]
[1725201499650,7.2694,2462.4,2461.6,5.39516683]
[1725201499943,3.2078,2461.8,2461.0,0.0061065]
[1725201500142,2.2211,2461.7,2461.0,0.0061065]
[1725201500347,2.2211,2461.7,2461.0,0.4124565]
[1725201500530,2.2211,2461.7,2461.1,5.72703035]
[1725201500735,2.62735,2461.7,2461.1,5.32070035]
[1725201500942,0.40628,2461.5,2461.0,0.0061065]
[1725201501148,4.3789143,2461.6,2461.0,0.4124565]
[1725201501340,0.40629,2461.4,2461.0,0.0061065]
[1725201501841,3.2078,2461.5,2461.0,0.0061065]
[1725201502037,3.61407,2461.5,2461.0,0.0061065]
[1725201502739,0.40632,2461.3,2461.0,0.0061065]
[1725201503132,4.0632,2461.2,2460.9,3.2078]
[1725201503439,3.2078,2461.4,2460.5,0.40643]
[1725201503743,3.2078,2461.4,2460.4,0.20116506]
[1725201503744,3.2078,2461.4,2460.4,5.47130636]
[1725201503943,0.40636,2461.0,2460.4,5.87774636]
[1725201504245,3.2078,2461.1,2460.5,0.41252397]
[1725201504246,0.72866474,2460.9,2460.5,0.41252397]
[1725201504442,0.72866474,2460.9,2460.6,0.4064]
[1725201504738,0.72866474,2460.9,2460.5,0.41252397]
[1725201505941,1.13503474,2460.9,2460.5,0.00609397]
[1725201506144,0.40641,2460.7,2460.5,0.00609397]
[1725201506336,0.7655,2460.6,2460.3,3.2078]
[1725201506741,5.23593,2460.6,2460.3,3.2078]
[1725201506946,0.40644,2460.5,2460.3,3.2078]
[1725201507337,4.47044,2460.5,2460.3,3.2078]
[1725201507536,4.064,2460.5,2460.3,3.2078]
[1725201507739,4.47045,2460.5,2460.3,3.2078]
[1725201508045,0.40645,2460.4,2460.2,0.00609397]
[1725201508258,0.40647,2460.3,2460.2,0.00609397]
[1725201508452,5.20087,2460.3,2460.2,0.00609397]
[1725201508648,0.4065,2460.2,2459.8,0.20065007]
[1725201508835,1.1581,2460.2,2459.8,0.20065007]
[1725201509040,0.7516,2460.2,2459.8,0.60720007]
[1725201509350,1.13608,2460.3,2460.1,0.4065]
[1725201509351,0.7296,2460.3,2460.1,0.4065]
[1725201510144,0.7655,2460.6,2460.1,0.40649]
[1725201510543,0.7655,2460.6,2460.2,0.40648]
[1725201511245,0.7655,2460.6,2460.1,5.61728723]
[1725201511441,0.7655,2460.6,2460.1,5.21078723]
[1725201511642,0.7655,2460.6,2460.4,0.40645]
[1725201512040,0.00606474,2460.9,2460.5,0.40644]
[1725201512545,0.00606474,2460.9,2460.6,9.17576264]
[1725201512750,0.00606474,2460.9,2460.7,0.4064]
[1725201512953,0.00606474,2460.9,2460.2,7.3558]
[1725201513249,0.00606474,2460.9,2460.7,0.40639]
[1725201513547,0.00606474,2460.9,2460.8,0.40639]
[1725201513745,0.00606474,2460.9,2460.8,5.58281223]
[1725201513946,0.00606474,2460.9,2460.8,9.64681223]
[1725201514147,0.00606474,2460.9,2460.8,4.47039]
[1725201514553,0.00606474,2460.9,2460.8,12.99970046]
[1725201514741,0.00606474,2460.9,2460.8,9.79190046]
[1725201516246,0.00606474,2460.9,2460.8,10.19830046]
[1725201516442,0.00606474,2460.9,2460.8,28.09546468]
[1725201517349,2.64035313,2463.5,2460.8,28.09546468]
[1725201517350,0.4062,2462.0,2461.4,0.40628]
[1725201517554,1.15981,2461.9,2461.3,0.61162549]
[1725201517755,0.7536,2461.9,2461.3,0.20532549]
[1725201517952,0.7536,2461.9,2461.1,3.2078]
[1725201518154,0.7536,2461.9,2461.4,0.40628]
[1725201518457,3.21389394,2461.8,2461.4,0.00609397]
[1725201518651,3.2078,2461.5,2461.4,0.00609397]
[1725201519048,7.2702,2461.5,2461.4,0.00609397]
[1725201519354,7.67647,2461.5,2461.4,0.00609397]
[1725201519947,7.2702,2461.5,2461.4,0.00609397]
[1725201520552,7.67647,2461.5,2461.4,0.00609397]
[1725201520861,7.2702,2461.5,2461.4,0.00609397]
[1725201521059,3.2078,2461.5,2461.4,0.00609397]
[1725201521658,3.2078,2461.5,2461.4,0.41238397]
[1725201521855,0.00609397,2461.8,2461.4,4.06849397]
[1725201522151,0.00609397,2461.8,2461.4,0.41237397]
[1725201522951,0.00609397,2461.8,2461.6,0.40625]
[1725201523749,0.00609397,2461.8,2461.7,0.40624]
[1725201524148,0.00609397,2461.8,2461.7,4.46864]
[1725201524447,0.00609397,2461.8,2461.5,3.2078]
[1725201524844,0.87169397,2461.8,2461.6,8.71775133]
[1725201525044,1.27791397,2461.8,2461.6,8.71775133]
[1725201525345,0.87169397,2461.8,2461.6,8.71775133]
[1725201527360,0.00609397,2461.8,2461.6,9.12400133]
[1725201528068,0.00609397,2461.8,2461.7,0.40624]
[1725201528363,0.00609397,2461.8,2461.7,9.76901856]
[1725201528760,0.00609397,2461.8,2461.7,10.50081856]
[1725201529156,0.00609397,2461.8,2461.7,9.36277856]
[1725201529362,0.00609397,2461.8,2461.5,3.77188476]
[1725201529663,0.00609397,2461.8,2461.7,8.53107671]
[1725201530062,0.00609397,2461.8,2461.5,3.61406]
[1725201530361,0.00609397,2461.8,2461.7,8.53107671]
[1725201530554,0.83489397,2461.8,2461.7,8.53107671]
[1725201530765,0.83489397,2461.8,2461.5,3.2078]
[1725201531160,0.83489397,2461.8,2461.7,8.44007857]
[1725201531367,0.00609397,2461.8,2461.7,8.44007857]
[1725201531553,0.00609397,2461.8,2461.7,9.65182471]
[1725201531754,0.00609397,2461.8,2461.7,4.0624]
[1725201532259,0.00609397,2461.8,2461.5,3.2078]
[1725201532461,0.00609397,2461.8,2461.7,0.40624]
[1725201532663,0.00609397,2461.8,2461.7,13.94940069]
[1725201532869,0.00609397,2461.8,2461.7,8.70809878]
[1725201533063,0.00609397,2461.8,2461.6,0.40625]
[1725201533361,0.00609397,2461.8,2461.7,0.40624]
[1725201533554,0.00609397,2461.8,2461.7,14.35018833]
[1725201534263,0.00609397,2461.8,2461.7,13.94394833]
[1725201534571,0.00609397,2461.8,2461.7,14.35018833]
[1725201534768,0.00609397,2461.8,2461.7,18.41258833]
[1725201535068,0.00609397,2461.8,2461.7,18.79806195]
[1725201536369,0.00609397,2461.8,2461.7,24.79806195]
[1725201536559,0.8288,2462.4,2462.2,0.40615]
[1725201536762,0.8288,2462.4,2462.0,3.2078]
[1725201537060,3.61385,2462.9,2462.0,3.2078]
[1725201537061,3.2078,2462.9,2462.1,5.68011055]
[1725201537261,0.40592,2463.7,2463.0,0.40601]
[1725201537561,0.8589,2463.5,2463.1,0.00609397]
[1725201537765,1.26485,2463.5,2463.1,0.00609397]
[1725201538279,0.8589,2463.5,2463.1,0.00609397]
[1725201538481,0.40599,2463.2,2463.1,0.00609397]
[1725201538779,0.40599,2463.2,2462.5,0.38538667]
[1725201538780,0.40605,2462.9,2462.5,0.38538667]
[1725201538981,2.04457,2462.8,2462.3,0.38538667]
[1725201539174,1.6385,2462.8,2462.3,0.38538667]
[1725201539369,1.6385,2462.8,2462.4,0.40612]
[1725201539581,1.6385,2462.8,2462.4,11.82067982]
[1725201539780,2.04457,2462.8,2462.4,11.82677379]
[1725201539972,1.6385,2462.8,2462.4,8.61897379]
[1725201540477,1.6385,2462.8,2462.4,0.00609397]
[1725201540478,0.4061,2462.6,2462.4,0.00609397]
[1725201540877,4.8463,2462.8,2462.4,0.00609397]
[1725201540878,0.40608,2462.7,2462.4,0.00609397]
[1725201541079,1.6385,2462.8,2462.4,0.00609397]
[1725201541478,1.6385,2462.8,2462.5,5.22122588]
[1725201541875,1.6385,2462.8,2462.6,0.40608]
[1725201542282,1.6385,2462.8,2462.5,5.22122588]
[1725201542283,1.6385,2462.8,2462.5,5.62732588]
[1725201542481,0.7875,2463.4,2462.7,16.78950998]
[1725201542684,0.847,2463.3,2463.0,3.2078]
[1725201542985,0.8153,2463.5,2463.3,0.40596]
[1725201543183,0.8153,2463.5,2463.4,0.40596]
[1725201543383,0.00609397,2463.6,2463.5,0.40594]
[1725201543589,0.00609397,2463.6,2463.4,5.24143579]
[1725201543787,0.00609397,2463.6,2463.1,0.406]
[1725201544087,0.00609397,2463.6,2463.3,8.50822978]
[1725201544480,0.00609397,2463.6,2463.4,0.40595]
[1725201544897,0.00609397,2463.6,2463.5,0.40594]
[1725201545188,0.00609397,2463.6,2463.5,5.59480412]
[1725201545393,0.00609397,2463.6,2463.4,5.59481412]
[1725201545587,0.00609397,2463.6,2463.4,0.40595]
[1725201545778,0.00609397,2463.6,2463.5,5.18886412]
[1725201546180,4.06529397,2463.6,2463.0,0.4064]
[1725201546380,4.06529397,2463.6,2462.9,3.2078]
[1725201546381,3.2078,2463.5,2462.9,3.2078]
[1725201546691,4.43365,2463.5,2462.9,3.61383]
[1725201546881,4.06,2463.4,2462.9,3.2078]
[1725201547083,4.06,2463.4,2462.4,0.00609397]
[1725201547084,3.2078,2463.2,2462.4,0.00609397]
[1725201547384,1.6461,2463.3,2462.9,0.40604]
[1725201547690,1.6461,2463.3,2462.6,3.40869784]
[1725201547899,0.796,2463.3,2463.2,0.40599]
[1725201548085,0.00609397,2463.6,2463.4,0.40596]
[1725201548280,0.00609397,2463.6,2463.2,7.2678]
[1725201548281,0.00609397,2463.6,2463.2,8.45223415]
[1725201548482,0.00609397,2463.6,2463.2,3.2078]
[1725201548683,3.61982397,2463.6,2463.2,3.2078]
[1725201548885,0.40597,2463.4,2463.2,3.2078]